bitfinex/quotes_BTCUSD_20220101
["timestamp","ask_amount","ask_price","bid_price","bid_amount"]
[1641061065813,0.160766,47728.0,47727.0,0.00433612]
[1641061066016,0.094307,47728.0,47713.0,1.91421521]
[1641061066217,0.052408,47719.0,47714.0,0.62866]
[1641061066414,0.052408,47719.0,47714.0,0.62889735]
[1641061067014,0.27750054,47716.0,47714.0,0.62889735]
[1641061067218,0.32990954,47716.0,47714.0,0.59889735]
[1641061068091,0.35173235,47716.0,47714.0,0.59889735]
[1641061068283,0.052409,47715.0,47714.0,0.59889735]
[1641061069486,0.07360519,47716.0,47714.0,0.59889735]
[1641061069884,0.07360519,47716.0,47714.0,0.59837909]
[1641061070084,0.09216807,47716.0,47714.0,0.59837909]
[1641061070288,0.07097188,47716.0,47714.0,0.59837909]
[1641061071313,0.052409,47716.0,47714.0,0.59837909]
[1641061071712,0.10481165,47718.0,47714.0,0.59837909]
[1641061072113,0.01898047,47719.0,47714.0,0.59837909]
[1641061072512,0.304854,47719.0,47714.0,0.59837909]
[1641061072916,0.404854,47719.0,47714.0,0.59837909]
[1641061073213,0.404854,47719.0,47714.0,0.59787909]
[1641061073414,0.052407,47716.0,47714.0,0.59787909]
[1641061073615,0.104815,47716.0,47714.0,0.59787909]
[1641061074015,0.052408,47716.0,47714.0,0.59787909]
[1641061074417,0.104821,47716.0,47714.0,0.59787909]
[1641061074875,0.15722915,47716.0,47714.0,0.59787909]
[1641061075269,0.104827,47715.0,47714.0,0.59787909]
[1641061075870,0.104827,47715.0,47714.0,0.59737909]
[1641061076570,0.314827,47715.0,47714.0,0.59737909]
[1641061076772,0.414827,47715.0,47714.0,0.59737909]
[1641061078174,0.43643862,47715.0,47714.0,0.59737909]
[1641061079020,0.48643862,47715.0,47714.0,0.59737909]
[1641061079219,0.50602019,47715.0,47714.0,0.59737909]
[1641061079418,0.48440857,47715.0,47714.0,0.59737909]
[1641061080219,0.50447307,47715.0,47714.0,0.59737909]
[1641061080419,0.4848915,47715.0,47714.0,0.59737909]
[1641061081222,0.50672408,47715.0,47714.0,0.59737909]
[1641061081519,0.52855958,47715.0,47714.0,0.59737909]
[1641061082762,0.55024366,47715.0,47714.0,0.59737909]
[1641061082962,0.52841108,47715.0,47714.0,0.59737909]
[1641061083165,0.54716757,47715.0,47714.0,0.59737909]
[1641061083362,0.52548349,47715.0,47714.0,0.59737909]
[1641061084164,0.54625053,47715.0,47714.0,0.59737909]
[1641061084362,0.52749404,47715.0,47714.0,0.59737909]
[1641061085365,0.52721701,47715.0,47714.0,0.59737909]
[1641061085767,0.52721701,47715.0,47714.0,0.52932009]
[1641061086221,0.54601802,47715.0,47714.0,0.52932009]
[1641061086420,0.52552801,47715.0,47714.0,0.52932009]
[1641061087223,0.54542183,47715.0,47714.0,0.52932009]
[1641061087425,0.83360873,47715.0,47714.0,0.52932009]
[1641061088224,0.85463184,47715.0,47714.0,0.52932009]
[1641061088626,0.83473802,47715.0,47714.0,0.51932009]
[1641061089327,0.85618089,47715.0,47714.0,0.51932009]
[1641061089527,0.83515778,47715.0,47714.0,0.51932009]
[1641061089973,0.83515778,47715.0,47714.0,0.51432009]
[1641061090174,0.85655229,47715.0,47714.0,0.51432009]
[1641061090572,0.83510942,47715.0,47714.0,0.51432009]
[1641061091274,0.85606467,47715.0,47714.0,0.51432009]
[1641061091475,0.83467016,47715.0,47714.0,0.51432009]
[1641061092179,1.70984893,47715.0,47714.0,0.51432009]
[1641061092376,1.46995109,47715.0,47714.0,0.51432009]
[1641061092577,1.83297441,47715.0,47714.0,0.51432009]
[1641061092978,1.85496696,47715.0,47714.0,0.51432009]
[1641061093278,1.85439382,47715.0,47714.0,0.51432009]
[1641061094134,1.81201916,47715.0,47714.0,0.51432009]
[1641061094333,1.83253468,47715.0,47714.0,0.51432009]
[1641061095334,1.85402748,47715.0,47714.0,0.51432009]
[1641061095533,1.83351196,47715.0,47714.0,0.51432009]
[1641061095735,1.83351196,47715.0,47714.0,0.50432009]
[1641061095936,1.47048864,47715.0,47714.0,0.50432009]
[1641061096335,1.49005104,47715.0,47714.0,0.50432009]
[1641061096534,1.46855824,47715.0,47714.0,0.50432009]
[1641061097371,1.48738593,47715.0,47714.0,0.50432009]
[1641061097566,1.46782353,47715.0,47714.0,0.50432009]
[1641061097764,1.02,47714.0,47712.0,0.00033]
[1641061097965,0.52384257,47713.0,47712.0,0.00033]
[1641061098165,0.62384257,47713.0,47712.0,0.00033]
[1641061098366,0.310766,47713.0,47712.0,0.00033]
[1641061099268,0.33275826,47713.0,47712.0,0.00033]
[1641061099466,0.69115529,47713.0,47712.0,0.00033]
[1641061099667,0.79115529,47713.0,47712.0,0.00033]
[1641061101116,0.78913586,47713.0,47712.0,0.00033]
[1641061101320,1.16802741,47713.0,47712.0,0.00033]
[1641061101516,1.14805458,47713.0,47712.0,0.00033]
[1641061102318,1.16919561,47713.0,47712.0,0.00033]
[1641061102518,1.15038598,47713.0,47712.0,0.00033]
[1641061103319,1.17185879,47713.0,47712.0,0.00033]
[1641061103518,1.15071776,47713.0,47712.0,0.00033]
[1641061104322,1.16977249,47713.0,47712.0,0.00033]
[1641061104520,1.14829968,47713.0,47712.0,0.00033]
[1641061105367,1.16840707,47713.0,47712.0,0.00033]
[1641061105567,1.14935234,47713.0,47712.0,0.00033]
[1641061106469,1.16817782,47713.0,47712.0,0.00033]
[1641061106667,1.14807043,47713.0,47712.0,0.00033]
[1641061107265,0.78798851,47713.0,47712.0,0.00033]
[1641061107678,1.15252703,47713.0,47712.0,0.00033]
[1641061108074,1.17358058,47713.0,47712.0,0.00033]
[1641061108273,1.1547551,47713.0,47712.0,0.00033]
[1641061108474,1.17421895,47713.0,47712.0,0.00033]
[1641061108728,1.17421895,47713.0,47701.0,0.93950364]
[1641061108729,0.32520938,47704.0,47701.0,0.93950364]
[1641061108928,0.052428,47703.0,47702.0,0.6289]
[1641061109132,0.052428,47703.0,47702.0,0.62913736]
[1641061114171,0.094328,47703.0,47702.0,0.31490096]
[1641061114371,1.44508303,47703.0,47702.0,0.26271303]
[1641061114567,1.02,47702.0,47700.0,0.00033]
[1641061114770,1.26470439,47701.0,47700.0,0.00033]
[1641061114967,1.26991409,47701.0,47700.0,0.00033]
[1641061115167,0.34991409,47701.0,47700.0,0.00033]
[1641061115469,0.34991409,47701.0,47690.0,0.00026317]
[1641061115470,0.052444,47698.0,47690.0,0.00026317]
[1641061115669,0.00123753,47691.0,47690.0,0.00026317]
[1641061115969,0.04313753,47691.0,47690.0,0.62932317]
[1641061116410,0.29496577,47691.0,47690.0,0.62932317]
[1641061116610,0.39741177,47691.0,47690.0,0.62932317]
[1641061116811,0.60741177,47691.0,47690.0,0.62932317]
[1641061117014,0.70617424,47691.0,47690.0,0.62932317]
[1641061118112,0.72496799,47691.0,47690.0,0.62932317]
[1641061118311,0.42313975,47691.0,47690.0,0.62932317]
[1641061118512,0.29994773,47691.0,47690.0,0.62932317]
[1641061118712,0.24750173,47691.0,47690.0,0.62932317]
[1641061119111,0.24750173,47691.0,47690.0,0.62432317]
[1641061119614,0.21,47691.0,47690.0,0.62432317]
[1641061121080,0.26,47691.0,47690.0,0.62432317]
[1641061121682,0.31,47691.0,47690.0,0.62432317]
[1641061121878,0.41,47691.0,47690.0,0.62432317]
[1641061122081,0.21,47691.0,47690.0,0.62432317]
[1641061122578,0.23193317,47691.0,47690.0,0.62432317]
[1641061123924,0.23193317,47691.0,47690.0,0.61932317]
[1641061124325,0.21,47691.0,47690.0,0.95605817]
[1641061126724,0.21,47691.0,47690.0,0.61932317]
[1641061128264,0.21,47691.0,47690.0,0.95605817]
[1641061128867,0.21,47691.0,47690.0,2.67592885]
[1641061129469,0.21,47691.0,47690.0,0.95605817]
[1641061133220,0.21,47691.0,47690.0,1.90415935]
[1641061133419,0.21,47691.0,47690.0,3.02515935]
[1641061134219,0.21,47691.0,47690.0,3.63888624]
[1641061135471,0.21,47691.0,47690.0,3.68078624]
[1641061135671,0.21,47691.0,47690.0,3.73078624]
[1641061136275,0.21,47691.0,47690.0,3.83078624]
[1641061138927,0.21,47691.0,47690.0,4.68439156]
[1641061139524,0.21,47691.0,47690.0,4.15439156]
[1641061142875,0.21,47691.0,47690.0,3.03339156]
[1641061144074,0.21,47691.0,47690.0,2.17978624]
[1641061144276,0.21,47691.0,47690.0,3.30078624]
[1641061145679,0.21,47691.0,47690.0,3.30092071]
[1641061146928,0.21,47691.0,47690.0,3.29092071]
[1641061148831,0.21,47691.0,47690.0,2.16992071]
[1641061149031,0.21,47691.0,47690.0,2.05181953]
[1641061149231,0.21,47691.0,47690.0,2.08071247]
[1641061149630,0.21,47691.0,47690.0,1.98071247]
[1641061150264,0.21,47691.0,47690.0,3.06171247]
[1641061150465,0.21,47691.0,47690.0,1.84071247]
[1641061150665,0.21,47691.0,47690.0,1.56991953]
[1641061151667,0.21,47691.0,47690.0,1.23318453]
[1641061152268,0.21,47691.0,47690.0,2.0668749]
[1641061152466,0.21,47691.0,47690.0,2.4036099]
[1641061152866,0.21,47691.0,47690.0,1.45314801]
[1641061153067,0.21,47691.0,47690.0,0.61945764]
[1641061153640,0.21,47691.0,47690.0,1.3340805]
[1641061154739,0.21,47691.0,47690.0,1.33394603]
[1641061154938,0.21,47691.0,47690.0,1.3290805]
[1641061155541,0.21,47691.0,47690.0,1.6658155]
[1641061155742,0.21,47691.0,47690.0,1.3290805]
[1641061156145,0.21,47691.0,47690.0,1.6658155]
[1641061156343,0.21,47691.0,47690.0,0.61445764]
[1641061157502,0.21,47691.0,47690.0,0.60945764]
[1641061158805,0.21,47691.0,47690.0,1.33166729]
[1641061159403,0.21,47691.0,47690.0,0.60945764]
[1641061159904,0.21,47691.0,47690.0,1.96019303]
[1641061160104,0.21,47691.0,47690.0,1.08585716]
[1641061160704,0.21,47691.0,47690.0,0.55945764]
[1641061160909,0.21,47691.0,47690.0,0.31000328]
[1641061160910,1.23,47691.0,47690.0,0.31000328]
[1641061161133,1.38,47691.0,47690.0,0.31000328]
[1641061161527,0.464878,47691.0,47690.0,0.31000328]
[1641061162025,0.4839398,47691.0,47690.0,0.31000328]
[1641061162226,1.07488624,47691.0,47690.0,0.37799828]
[1641061162426,1.24504465,47691.0,47690.0,0.37799828]
[1641061163028,2.26504465,47691.0,47690.0,0.33553491]
[1641061163229,1.24504465,47691.0,47690.0,0.33553491]
[1641061163430,1.138866,47688.0,47687.0,0.00033]
[1641061163630,1.02,47687.0,47682.0,0.71530712]
[1641061163831,1.1400881,47683.0,47682.0,0.71530712]
[1641061164028,0.72510257,47683.0,47682.0,0.00011]
[1641061164231,0.71153953,47681.0,47680.0,0.00044]
[1641061164429,1.14268264,47680.0,47677.0,0.71552712]
[1641061164730,1.28458264,47680.0,47677.0,0.71552712]
[1641061164968,1.28458264,47680.0,47677.0,0.00033]
[1641061165167,1.40344864,47680.0,47677.0,0.00033]
[1641061165566,1.99378401,47680.0,47677.0,0.00033]
[1641061165967,2.01235232,47680.0,47677.0,0.00033]
[1641061166370,1.42201695,47680.0,47679.0,0.00033]
[1641061166572,1.02,47679.0,47677.0,0.00033]
[1641061166769,1.180766,47679.0,47677.0,0.00033]
[1641061166971,1.280766,47679.0,47678.0,0.00051304]
[1641061167970,1.29953618,47679.0,47678.0,0.00051304]
[1641061168621,1.87101852,47679.0,47678.0,0.00018304]
[1641061168821,1.94393436,47679.0,47678.0,0.00018304]
[1641061169022,1.56368184,47679.0,47678.0,0.00018304]
[1641061169422,2.27208429,47679.0,47678.0,0.00018304]
[1641061169621,1.25208429,47679.0,47678.0,0.00018304]
[1641061169821,1.27153537,47679.0,47678.0,0.00018304]
[1641061170022,1.25237987,47679.0,47678.0,0.00018304]
[1641061170824,1.27063226,47679.0,47678.0,0.00018304]
[1641061171026,1.25118118,47679.0,47678.0,0.00018304]
[1641061171425,0.54277873,47679.0,47678.0,0.00018304]
[1641061172026,0.54336546,47679.0,47678.0,0.00018304]
[1641061172485,1.13306536,47679.0,47678.0,0.00018304]
[1641061172887,1.15289004,47679.0,47678.0,0.00018304]
[1641061173086,0.54435102,47679.0,47678.0,0.00018304]
[1641061173485,0.888866,47678.0,47675.0,0.00040704]
[1641061173684,0.10490762,47677.0,47675.0,0.00040704]
[1641061173885,0.118866,47676.0,47675.0,0.00040704]
[1641061174086,0.118866,47676.0,47675.0,0.62965704]
[1641061174289,0.10490762,47677.0,47675.0,0.62965704]
[1641061175290,0.02008644,47678.0,47675.0,0.62965704]
[1641061175689,0.02008644,47678.0,47676.0,0.35133012]
[1641061175891,0.02008644,47678.0,47677.0,0.62923]
[1641061176127,0.21,47679.0,47677.0,0.62923]
[1641061176529,0.21,47679.0,47677.0,1.72140583]
[1641061177329,0.21,47679.0,47677.0,0.62923]
[1641061178431,0.21,47679.0,47678.0,0.2898348]
[1641061178634,0.21,47679.0,47678.0,0.91682114]
[1641061178834,0.21,47679.0,47678.0,0.62922]
[1641061180685,0.21,47679.0,47678.0,0.92655894]
[1641061180983,0.21,47679.0,47678.0,0.62922]
[1641061182386,0.21,47679.0,47678.0,0.92376614]
[1641061185135,0.21,47679.0,47678.0,1.26050114]
[1641061187040,0.21,47679.0,47678.0,0.965955]
[1641061187384,0.21,47679.0,47678.0,1.26129188]
[1641061190383,0.21,47679.0,47678.0,1.52366946]
[1641061191231,0.085,47679.0,47678.0,1.52366946]
[1641061191532,0.085,47679.0,47678.0,1.52003504]
[1641061191733,0.085,47679.0,47678.0,1.22833258]
[1641061191932,0.085,47679.0,47678.0,0.89159758]
[1641061192334,0.085,47679.0,47678.0,1.7261397]
[1641061192634,0.085,47679.0,47678.0,2.0628747]
[1641061193035,0.085,47679.0,47678.0,4.83880848]
[1641061193235,0.085,47679.0,47678.0,1.80049712]
[1641061194036,0.085,47679.0,47678.0,2.0628747]
[1641061194236,0.135,47679.0,47678.0,1.22833258]
[1641061194437,0.135,47679.0,47678.0,1.55348209]
[1641061195372,0.135,47679.0,47678.0,1.22833258]
[1641061195672,0.135,47679.0,47678.0,1.53416171]
[1641061195870,0.185,47679.0,47678.0,1.53416171]
[1641061196271,0.185,47679.0,47678.0,2.36870577]
[1641061197173,0.185,47679.0,47678.0,2.06287664]
[1641061198624,0.185,47679.0,47678.0,1.72614164]
[1641061199729,0.185,47679.0,47678.0,0.62922]
[1641061199930,0.185,47679.0,47678.0,0.965955]
[1641061200129,0.185,47679.0,47678.0,1.25589297]
[1641061200731,0.185,47679.0,47678.0,1.97124062]
[1641061201331,0.185,47679.0,47678.0,1.25589297]
[1641061202234,0.185,47679.0,47678.0,2.35889479]
[1641061202683,0.185,47679.0,47678.0,1.25589297]
[1641061203281,0.185,47679.0,47678.0,1.30832797]
[1641061203882,0.185,47679.0,47678.0,1.25589297]
[1641061204284,0.185,47679.0,47678.0,2.35890979]
[1641061205184,0.185,47679.0,47678.0,2.09043703]
[1641061205383,0.185,47679.0,47678.0,1.25589297]
[1641061210675,0.185,47679.0,47678.0,0.965955]
[1641061211277,0.185,47679.0,47678.0,1.31677974]
[1641061215133,0.185,47679.0,47678.0,0.965955]
[1641061215338,0.185,47679.0,47678.0,1.25143003]
[1641061216339,0.185,47679.0,47678.0,1.29333003]
[1641061216636,0.185,47679.0,47678.0,1.34333003]
[1641061216938,0.185,47679.0,47678.0,2.43795762]
[1641061217136,0.185,47679.0,47678.0,3.55895762]
[1641061218079,0.185,47679.0,47678.0,2.72441356]
[1641061218480,0.185,47679.0,47678.0,3.55835355]
[1641061218681,0.185,47679.0,47678.0,3.64226289]
[1641061219684,0.185,47679.0,47678.0,2.8083229]
[1641061220086,0.185,47679.0,47678.0,2.8583229]
[1641061221245,0.185,47679.0,47678.0,2.96136989]
[1641061221432,0.185,47679.0,47678.0,3.06136989]
[1641061221636,0.135,47679.0,47678.0,3.06264314]
[1641061221836,0.135,47679.0,47678.0,3.48309615]
[1641061222433,0.14210536,47680.0,47679.0,0.0012295]
[1641061222634,0.12268264,47680.0,47679.0,3.69303798]
[1641061222834,0.10518264,47680.0,47679.0,3.69303798]
[1641061223034,0.10518264,47680.0,47679.0,3.79303798]
[1641061223436,0.10518264,47680.0,47679.0,4.39303798]
[1641061223637,0.10518264,47680.0,47679.0,5.60606406]
[1641061224035,0.10518264,47680.0,47679.0,5.50606406]
[1641061224234,0.10518264,47680.0,47679.0,4.55312151]
[1641061224639,0.10518264,47680.0,47679.0,5.22214056]
[1641061226387,0.10018264,47680.0,47679.0,5.22214056]
[1641061227790,2.64e-06,47680.0,47679.0,5.22214056]
[1641061228290,0.00307244,47682.0,47681.0,0.00129863]
[1641061228494,0.00307244,47682.0,47681.0,4.15050859]
[1641061228722,0.00314548,47682.0,47681.0,4.30050859]
[1641061229126,7.36e-06,47684.0,47683.0,0.336735]
[1641061229324,7.36e-06,47684.0,47683.0,2.66811623]
[1641061229523,7.36e-06,47684.0,47683.0,2.93728254]
[1641061229723,0.02048015,47703.0,47683.0,3.51078254]
[1641061229923,0.02048015,47703.0,47693.0,1.121]
[1641061230225,0.00036515,47702.0,47699.0,1.98143719]
[1641061230426,0.00036515,47702.0,47701.0,0.336735]
[1641061230623,0.02066661,47705.0,47701.0,1.31075274]
[1641061231036,0.00040167,47704.0,47702.0,1.121]
[1641061231223,0.00040167,47704.0,47703.0,1.36929436]
[1641061231424,0.02066661,47705.0,47704.0,1.121]
[1641061231630,0.01994486,47708.0,47707.0,0.00127881]
[1641061231827,0.01994486,47708.0,47707.0,2.08785381]
[1641061232125,0.01994486,47708.0,47707.0,1.01685381]
[1641061232391,0.01994486,47708.0,47707.0,1.33109296]
[1641061232787,0.01994486,47708.0,47707.0,1.38349096]
[1641061232985,0.01994486,47708.0,47707.0,2.54639096]
[1641061233388,0.01999981,47710.0,47707.0,2.54639096]
[1641061233591,0.02472167,47715.0,47709.0,0.336735]
[1641061233786,0.02472167,47715.0,47712.0,0.052398]
[1641061233787,0.02002167,47715.0,47712.0,0.052398]
[1641061233987,0.02002167,47715.0,47713.0,1.02817596]
[1641061234190,0.02002167,47715.0,47714.0,0.28824975]
[1641061234387,0.02002167,47715.0,47714.0,0.91699975]
[1641061234590,0.00060251,47715.0,47714.0,0.95889975]
[1641061235589,0.00060251,47715.0,47714.0,1.21264227]
[1641061235890,0.00060251,47715.0,47714.0,1.54937727]
[1641061236324,0.00060251,47715.0,47714.0,2.67162638]
[1641061238027,0.00060251,47715.0,47714.0,2.75545658]
[1641061238228,0.21060251,47715.0,47714.0,2.75545658]
[1641061239029,0.21060251,47715.0,47714.0,2.85545658]
[1641061243075,0.21060251,47715.0,47714.0,1.37946495]
[1641061243275,0.21060251,47715.0,47714.0,1.0912152]
[1641061243478,0.21060251,47715.0,47714.0,1.36949392]
[1641061246132,0.21060251,47715.0,47714.0,1.0493152]
[1641061246932,0.19560251,47715.0,47714.0,1.0493152]
[1641061247132,0.19560251,47715.0,47714.0,0.965485]
[1641061253226,0.19560251,47715.0,47714.0,0.62875]
[1641061253630,0.3956025,47715.0,47714.0,0.62875]
[1641061253827,1.07560251,47715.0,47714.0,0.62875]
[1641061254126,1.3944685,47715.0,47714.0,0.62875]
[1641061254730,1.41619468,47715.0,47714.0,0.62875]
[1641061255583,1.43706839,47715.0,47714.0,0.62875]
[1641061255785,1.41534221,47715.0,47714.0,0.62875]
[1641061256282,1.41534221,47715.0,47714.0,0.61375]
[1641061257184,1.43604134,47715.0,47714.0,0.61375]
[1641061257382,0.052423,47712.0,47697.0,0.00124367]
[1641061257584,0.104846,47713.0,47694.0,0.3406963]
[1641061257585,0.00124252,47703.0,47694.0,0.3406963]
[1641061257785,0.0524293,47700.0,47698.0,0.00031039]
[1641061258184,0.00124252,47703.0,47692.0,0.00041994]
[1641061258384,0.27341755,47699.0,47692.0,0.00041994]
[1641061258657,0.052431,47696.0,47692.0,0.00041994]
[1641061259054,0.104862,47696.0,47692.0,0.00041994]
[1641061259255,0.05243084,47695.0,47692.0,0.00041994]
[1641061259456,0.00129609,47694.0,47692.0,0.00041994]
[1641061259664,0.578866,47693.0,47692.0,0.00041994]
[1641061259856,0.118866,47693.0,47692.0,0.62903]
[1641061260056,0.1,47693.0,47692.0,0.62903]
[1641061260259,0.15,47693.0,47692.0,0.62944994]
[1641061260661,0.82,47693.0,47692.0,0.62944994]
[1641061260859,0.938866,47693.0,47692.0,0.62944994]
[1641061261258,0.268866,47693.0,47692.0,0.62944994]
[1641061261461,0.7396999,47693.0,47692.0,0.62944994]
[1641061261656,0.87948732,47693.0,47692.0,0.62944994]
[1641061262060,0.28978742,47693.0,47692.0,0.62944994]
[1641061262783,0.268866,47693.0,47692.0,0.62944994]
[1641061262986,0.168866,47693.0,47692.0,0.62944994]
[1641061263985,0.17203769,47694.0,47692.0,0.62944994]
[1641061263986,0.0183106,47694.0,47692.0,0.62944994]
[1641061264185,0.0183106,47694.0,47693.0,0.3355486]
[1641061264383,0.01974385,47694.0,47693.0,0.96497028]
[1641061264986,0.01890505,47702.0,47693.0,0.96497028]
[1641061265184,0.01890505,47702.0,47694.0,0.32228479]
[1641061265384,0.01890505,47702.0,47695.0,0.965735]
[1641061265586,0.01890505,47702.0,47695.0,0.96610016]
[1641061265784,0.01890505,47702.0,47696.0,0.0003469]
[1641061265985,0.00125953,47704.0,47697.0,0.966299]
[1641061266225,0.052421,47704.0,47697.0,0.62897]
[1641061267827,0.10484311,47704.0,47697.0,0.62897]
[1641061268528,0.15726611,47704.0,47697.0,0.62897]
[1641061268729,0.36726611,47704.0,47697.0,0.62897]
[1641061268929,0.46726611,47704.0,47697.0,0.62897]
[1641061269627,0.052423,47702.0,47697.0,0.62897]
[1641061271686,0.23082401,47704.0,47698.0,0.27080045]
[1641061271883,0.25254944,47704.0,47702.0,0.337329]
[1641061272084,0.25254944,47704.0,47703.0,2.37345773]
[1641061272282,0.25254944,47704.0,47703.0,1.35367683]
[1641061272585,0.21,47704.0,47703.0,1.35367683]
[1641061272784,0.21,47704.0,47703.0,1.06198364]
[1641061273183,0.21,47704.0,47703.0,1.0083381]
[1641061273639,0.21,47704.0,47703.0,0.9664381]
[1641061275942,0.21,47704.0,47703.0,1.26221153]
[1641061279882,0.205,47704.0,47703.0,1.26221153]
[1641061281628,0.204548,47704.0,47703.0,1.26221153]
[1641061282833,0.204548,47704.0,47703.0,2.64234577]
[1641061283231,0.204548,47704.0,47703.0,2.34657234]
[1641061283833,0.204548,47704.0,47703.0,1.80052503]
[1641061284034,0.204548,47704.0,47703.0,0.9664381]
[1641061284231,0.204548,47704.0,47703.0,1.24875827]
[1641061285486,0.204548,47704.0,47703.0,1.963786]
[1641061285891,0.204548,47704.0,47703.0,1.24875827]
[1641061287491,0.204548,47704.0,47703.0,0.9664381]
[1641061288292,0.204548,47704.0,47703.0,1.24772677]
[1641061288491,0.204548,47704.0,47703.0,1.24826243]
[1641061290230,0.204548,47704.0,47703.0,1.79719469]
[1641061293793,0.204548,47704.0,47703.0,1.51537036]
[1641061294994,0.204548,47704.0,47703.0,0.9664381]
[1641061296644,0.204548,47704.0,47703.0,0.9697651]
[1641061297948,0.204548,47704.0,47703.0,0.6324361]
[1641061298948,0.46757789,47704.0,47703.0,0.6324361]
[1641061299148,0.56757789,47704.0,47703.0,0.6324361]
[1641061299980,0.70859303,47704.0,47703.0,0.6324361]
[1641061301182,0.7280958,47704.0,47703.0,0.6324361]
[1641061301778,0.68753889,47704.0,47703.0,0.6324361]
[1641061301980,0.70762648,47704.0,47703.0,0.6324361]
[1641061302183,0.70762648,47704.0,47703.0,0.632217]
[1641061302881,1.05964604,47704.0,47703.0,0.632217]
[1641061303082,1.08028995,47704.0,47703.0,0.632217]
[1641061303382,1.06142218,47704.0,47703.0,0.632217]
[1641061304045,1.08053267,47704.0,47703.0,0.632217]
[1641061304242,0.7078692,47704.0,47703.0,0.632217]
[1641061305243,0.70664938,47704.0,47703.0,0.632217]
[1641061305645,0.72600639,47704.0,47703.0,0.632217]
[1641061305843,0.7068959,47704.0,47703.0,0.632217]
[1641061306649,0.72596817,47704.0,47703.0,0.632217]
[1641061306847,0.70661116,47704.0,47703.0,0.632217]
[1641061307049,0.72698165,47704.0,47703.0,0.632217]
[1641061307247,0.70790938,47704.0,47703.0,0.632217]
[1641061308696,0.72608609,47704.0,47703.0,0.632217]
[1641061308896,0.7057156,47704.0,47703.0,0.632217]
[1641061309600,0.7057156,47704.0,47703.0,0.607217]
[1641061309796,0.7266894,47704.0,47703.0,0.607217]
[1641061309996,0.70851269,47704.0,47703.0,0.607217]
[1641061310198,0.7301806,47704.0,47703.0,0.607217]
[1641061310398,0.7092068,47704.0,47703.0,0.607217]
[1641061311240,0.72997815,47704.0,47703.0,0.607217]
[1641061311440,0.70831024,47704.0,47703.0,0.607217]
[1641061311843,0.44528035,47704.0,47703.0,0.607217]
[1641061312239,0.34353221,47704.0,47703.0,0.607217]
[1641061312438,0.22276086,47704.0,47703.0,0.607217]
[1641061312638,0.32276086,47704.0,47703.0,0.607217]
[1641061313440,0.304548,47704.0,47703.0,0.607217]
[1641061313641,0.204548,47704.0,47703.0,0.607217]
[1641061313838,0.304548,47704.0,47703.0,0.607217]
[1641061314240,0.32485314,47704.0,47703.0,0.607217]
[1641061315297,0.24627716,47704.0,47703.0,0.607217]
[1641061315494,0.32597202,47704.0,47703.0,0.607217]
[1641061316295,0.34555843,47704.0,47703.0,0.607217]
[1641061316496,0.32413441,47704.0,47703.0,0.607217]
[1641061316698,0.22413441,47704.0,47703.0,0.607217]
[1641061316895,0.32413441,47704.0,47703.0,0.607217]
[1641061317296,0.34315123,47704.0,47703.0,0.607217]
[1641061317497,0.32356482,47704.0,47703.0,0.607217]
[1641061317896,0.44352582,47704.0,47703.0,0.607217]
[1641061318299,0.46356254,47704.0,47703.0,0.607217]
[1641061318500,0.44454572,47704.0,47703.0,0.607217]
[1641061319244,0.46414226,47704.0,47703.0,0.607217]
[1641061319444,0.44410554,47704.0,47703.0,0.607217]
[1641061319845,0.32414454,47704.0,47703.0,0.607217]
[1641061320044,0.22414454,47704.0,47703.0,0.607217]
[1641061320244,0.24489895,47704.0,47703.0,0.607217]
[1641061320645,0.34526341,47704.0,47703.0,0.607217]
[1641061321046,0.44526341,47704.0,47703.0,0.607217]
[1641061321246,0.46327889,47704.0,47703.0,0.607217]
[1641061321448,0.44252448,47704.0,47703.0,0.607217]
[1641061322922,0.46404998,47704.0,47703.0,0.607217]
[1641061323120,0.4460345,47704.0,47703.0,0.607217]
[1641061323320,0.46678916,47704.0,47703.0,0.607217]
[1641061323620,0.44526366,47704.0,47703.0,0.607217]
[1641061323825,0.32530266,47704.0,47703.0,0.607217]
[1641061324022,0.22530266,47704.0,47703.0,0.607217]
[1641061324222,0.32530266,47704.0,47703.0,0.607217]
[1641061324421,0.34356511,47704.0,47703.0,0.607217]
[1641061324625,0.32281045,47704.0,47703.0,0.607217]
[1641061325223,0.343796,47704.0,47703.0,0.607217]
[1641061325424,0.22676347,47704.0,47703.0,0.607217]
[1641061325627,0.44672447,47704.0,47703.0,0.607217]
[1641061326231,0.46698432,47704.0,47703.0,0.607217]
[1641061326432,0.44599877,47704.0,47703.0,0.607217]
[1641061327233,0.46673275,47704.0,47703.0,0.607217]
[1641061328231,0.48672556,47704.0,47703.0,0.607217]
[1641061328434,0.44573173,47704.0,47703.0,0.607217]
[1641061329234,0.46601628,47704.0,47703.0,0.607217]
[1641061329435,0.44602347,47704.0,47703.0,0.607217]
[1641061330204,0.44479355,47704.0,47703.0,0.607217]
[1641061330402,0.44413295,47704.0,47703.0,0.607217]
[1641061331404,0.4656259,47704.0,47703.0,0.607217]
[1641061332406,0.48612368,47704.0,47703.0,0.607217]
[1641061332605,0.44500678,47704.0,47703.0,0.607217]
[1641061333305,0.46636902,47704.0,47703.0,0.473382]
[1641061333507,0.44587124,47704.0,47703.0,0.473382]
[1641061334345,0.46467404,47704.0,47703.0,0.473382]
[1641061335147,0.424509,47704.0,47703.0,0.473382]
[1641061335350,0.44507026,47704.0,47703.0,0.473382]
[1641061337050,0.46491934,47704.0,47703.0,0.473382]
[1641061337252,0.44435808,47704.0,47703.0,0.473382]
[1641061337492,0.3462367,47704.0,47703.0,0.473382]
[1641061337693,0.22638762,47704.0,47703.0,0.473382]
[1641061337895,0.22638762,47704.0,47703.0,0.78575185]
[1641061338093,0.22638762,47704.0,47703.0,0.78705015]
[1641061338791,0.204548,47704.0,47703.0,0.78705015]
[1641061339490,0.204548,47704.0,47703.0,1.12437915]
[1641061340091,0.204321,47704.0,47703.0,1.12437915]
[1641061340291,0.204321,47704.0,47703.0,1.12308085]
[1641061343448,0.204321,47704.0,47703.0,2.24408085]
[1641061343850,0.204321,47704.0,47703.0,2.21908085]
[1641061344999,0.204321,47704.0,47703.0,1.09808085]
[1641061349742,0.204321,47704.0,47703.0,3.49749205]
[1641061349943,0.204321,47704.0,47703.0,1.09808085]
[1641061351843,0.204321,47704.0,47703.0,1.06962502]